bitfinex/quotes_SOLUSD_20250414
["timestamp","ask_amount","ask_price","bid_price","bid_amount"]
[1744665324737,57.37045347,129.98,129.97,0.063]
[1744665325035,10.48,129.99,129.97,0.063]
[1744665326736,37.00498551,129.99,129.97,0.063]
[1744665327114,44.69788551,129.99,129.97,0.063]
[1744665327327,26.52498551,129.98,129.97,0.063]
[1744665327637,37.00498551,129.99,129.97,0.063]
[1744665328243,10.48,129.99,129.97,0.063]
[1744665333834,10.48,130.03,129.98,26.52498551]
[1744665334030,10.48,130.03,129.99,34.21778551]
[1744665335245,27.03740736,130.03,129.99,24.25020736]
[1744665335450,10.48,130.03,130.0,16.55740736]
[1744665336153,10.48,130.03,130.0,24.24930736]
[1744665337252,10.48,130.03,129.99,16.55740736]
[1744665337443,27.03740736,130.03,129.98,16.55740736]
[1744665337858,27.03740736,130.03,129.98,24.25050736]
[1744665338036,80.552,130.04,130.01,16.55740736]
[1744665338244,0.5,130.05,130.02,7.6911]
[1744665338544,0.5,130.05,130.02,24.24850736]
[1744665340166,0.5,130.05,130.03,24.24760736]
[1744665340455,0.5,130.05,130.01,24.24910736]
[1744665340661,0.5,130.05,130.02,16.55740736]
[1744665341561,16.55740736,130.04,130.0,15.8171]
[1744665341752,16.55740736,130.04,130.0,15.8173]
[1744665342133,16.55740736,130.04,130.0,32.37470736]
[1744665342333,24.74690736,130.05,130.01,16.55740736]
[1744665342636,17.05740736,130.05,130.01,16.55740736]
[1744665344068,0.5,130.05,130.01,16.55740736]
[1744665344244,17.05740736,130.05,130.01,24.24880736]
[1744665344447,17.05740736,130.05,130.01,23.24880736]
[1744665344669,16.55740736,130.04,130.0,8.1251]
[1744665344875,16.55740736,130.04,129.97,0.063]
[1744665344876,16.55740736,130.01,129.97,8.2406]
[1744665345172,16.55740736,130.0,129.97,8.2406]
[1744665346061,16.55740736,130.01,129.97,15.9346]
[1744665346774,16.55740736,130.0,129.97,15.9346]
[1744665347776,16.55740736,130.0,129.97,8.2406]
[1744665347953,16.55740736,129.99,129.97,8.2406]
[1744665348153,16.55740736,130.0,129.97,15.9345]
[1744665352985,16.55740736,129.99,129.97,8.2406]
[1744665353173,16.55740736,129.98,129.97,0.063]
[1744665354367,7.6923,130.0,129.97,0.063]
[1744665354565,16.55740736,129.99,129.97,0.063]
[1744665354787,16.55740736,129.98,129.97,0.063]
[1744665359497,24.25080736,129.98,129.97,0.063]
[1744665360691,16.55740736,129.98,129.97,0.063]
[1744665361087,43.32694093,129.98,129.97,0.063]
[1744665361569,53.80694093,129.98,129.97,0.063]
[1744665363201,53.9491025,129.98,129.97,0.063]
[1744665364807,53.66477936,129.98,129.97,0.063]
[1744665365108,53.80694093,129.98,129.97,0.063]
[1744665365303,27.03740736,129.98,129.97,0.063]
[1744665366682,34.73080736,129.98,129.97,0.063]
[1744665370612,17.05740736,130.0,129.97,0.063]
[1744665371606,16.55740736,129.99,129.97,0.063]
[1744665375387,17.05740736,130.0,129.97,0.063]
[1744665375817,24.74970736,130.0,129.97,0.063]
[1744665376015,0.5,130.0,129.97,0.063]
[1744665376315,17.05740736,130.0,129.97,0.063]
[1744665376520,16.55740736,129.99,129.97,0.063]
[1744665376902,8.1923,130.0,129.97,0.063]
[1744665377406,16.55740736,129.99,129.97,0.063]
[1744665378319,0.5,130.0,129.97,0.063]
[1744665378500,0.5,130.0,129.97,16.62040736]
[1744665379824,0.5,130.0,129.98,7.6934]
[1744665381921,0.5,130.0,129.97,7.757]
[1744665382418,17.05740736,130.0,129.97,7.757]
[1744665383919,0.5,130.0,129.97,7.757]
[1744665384122,17.05740736,130.0,129.97,7.757]
[1744665386129,0.5,130.0,129.99,16.55740736]
[1744665386307,0.5,130.0,129.99,1.5567]
[1744665387230,0.5,130.0,129.99,9.2495]
[1744665387727,0.5,130.0,129.99,25.80690736]
[1744665393138,0.5,130.0,129.99,19.84547625]
[1744665396933,0.5,130.0,129.99,9.2495]
[1744665397115,0.5,130.0,129.99,7.6928]
[1744665397637,0.5,130.0,129.98,7.6932]
[1744665398740,10.59597625,129.99,129.97,0.063]
[1744665398944,10.59597625,129.98,129.97,0.063]
[1744665401147,16.56972946,129.98,129.97,0.063]
[1744665402160,24.26312946,129.98,129.97,0.063]
[1744665403052,43.33926303,129.98,129.97,0.063]
[1744665403974,43.4814246,129.98,129.97,0.063]
[1744665404151,52.77073357,129.96,129.95,0.063]
[1744665404358,85.91019249,129.96,129.95,0.063]
[1744665406943,69.34046303,129.96,129.95,0.063]
[1744665407138,26.0,129.96,129.95,0.063]
[1744665407349,42.56972946,129.97,129.95,0.063]
[1744665407552,16.56972946,129.96,129.95,0.063]
[1744665410361,33.6942,129.97,129.95,0.063]
[1744665410540,16.56972946,129.96,129.95,0.063]
[1744665410860,26.0,129.97,129.95,0.063]
[1744665410861,42.56972946,129.97,129.95,0.063]
[1744665413162,26.0,129.97,129.95,0.063]
[1744665414734,16.56972946,129.96,129.95,0.063]
[1744665415639,24.26432946,129.96,129.95,0.063]
[1744665416966,16.56972946,129.96,129.95,0.063]
[1744665417784,24.26432946,129.96,129.95,0.063]
[1744665420486,43.4826246,129.96,129.95,0.063]
[1744665420653,35.64586303,129.96,129.95,0.063]
[1744665420855,26.0,129.97,129.95,0.063]
[1744665421973,42.56972946,129.97,129.95,0.063]
[1744665423092,16.56972946,129.96,129.95,0.063]
[1744665423290,45.07613357,129.92,129.91,0.063]
[1744665423586,61.64586303,129.92,129.91,0.063]
[1744665424588,69.34286303,129.92,129.91,0.063]
[1744665425085,69.4850246,129.92,129.91,0.063]
[1744665425288,19.07613357,129.91,129.9,0.063]
[1744665425586,52.21559249,129.91,129.9,0.063]
[1744665425893,35.64586303,129.91,129.9,0.063]
[1744665426685,43.34346303,129.91,129.9,0.063]
[1744665428660,60.05535406,129.91,129.9,0.063]
[1744665430978,0.14216157,129.9,129.89,0.063]
[1744665431175,45.07613357,129.88,129.87,0.063]
[1744665431374,55.55613357,129.88,129.87,0.063]
[1744665431685,72.12586303,129.88,129.87,0.063]
[1744665431893,72.2680246,129.88,129.87,0.063]
[1744665432360,45.07613357,129.85,129.84,0.063]
[1744665432562,19.21829514,129.84,129.83,0.063]
[1744665432794,60.05945406,129.84,129.83,0.063]
[1744665433787,61.7880246,129.81,129.8,0.063]
[1744665434087,72.2680246,129.81,129.8,0.063]
[1744665434464,61.7880246,129.81,129.8,0.063]
[1744665434665,79.9715246,129.81,129.8,0.063]
[1744665435187,79.9715246,129.81,129.77,0.063]
[1744665435402,61.64586303,129.78,129.77,0.063]
[1744665436768,86.06305406,129.78,129.77,0.063]
[1744665438171,69.4933246,129.78,129.77,0.063]
[1744665438493,45.21829514,129.78,129.77,0.063]
[1744665438676,52.92359514,129.78,129.77,0.063]
[1744665438991,69.4933246,129.78,129.77,0.063]
[1744665439194,69.35116303,129.78,129.77,0.063]
[1744665440202,69.4933246,129.78,129.77,0.063]
[1744665441607,86.06305406,129.78,129.77,0.063]
[1744665442475,69.4933246,129.78,129.77,0.063]
[1744665444204,73.27423515,129.78,129.77,0.063]
[1744665447198,89.84396461,129.78,129.77,0.063]
[1744665451503,112.93396461,129.78,129.77,0.063]
[1744665451801,89.84396461,129.78,129.77,0.063]
[1744665453405,73.27423515,129.78,129.77,0.063]
[1744665457602,83.75423515,129.78,129.77,0.063]
[1744665458805,100.32396461,129.78,129.77,0.063]
[1744665459307,120.40491544,129.78,129.77,0.063]
[1744665460310,77.82858764,129.78,129.77,0.063]
[1744665462011,100.91858764,129.78,129.77,0.063]
[1744665462218,19.21829514,129.77,129.76,0.063]
[1744665462402,29.86237709,129.77,129.76,0.063]
[1744665463210,26.92479514,129.76,129.75,0.0001]
[1744665463394,43.56309636,129.76,129.75,0.0001]
[1744665476828,18.79181043,129.76,129.75,0.0001]
[1744665477235,19.07613357,129.76,129.75,0.0001]
[1744665477421,18.79181043,129.76,129.75,0.0001]
[1744665477934,26.78263357,129.76,129.75,0.0001]
[1744665478735,19.07613357,129.76,129.75,0.0001]
[1744665479046,80.8,129.77,129.75,0.0001]
[1744665479250,7.7043,129.8,129.76,16.63830122]
[1744665479417,29.8007,129.82,129.79,16.63830122]
[1744665479418,10.543,129.82,129.79,16.63830122]
[1744665479626,10.543,129.82,129.81,16.63830122]
[1744665483144,19.07613357,129.81,129.78,24.58360122]
[1744665483439,19.07613357,129.81,129.78,7.9453]
[1744665483613,45.07613357,129.79,129.78,7.9453]
[1744665484017,61.71443479,129.79,129.78,7.9453]
[1744665484233,19.07613357,129.78,129.75,7.8667]
[1744665484424,35.71443479,129.78,129.75,7.8667]
[1744665484933,19.07613357,129.78,129.75,7.8667]
[1744665486724,26.78183357,129.78,129.75,7.8667]
[1744665488342,26.78183357,129.78,129.75,24.50500122]
[1744665488343,26.0,129.78,129.75,24.50500122]
[1744665488545,26.0,129.78,129.76,16.63830122]
[1744665491249,26.0,129.78,129.76,24.34460122]
[1744665492954,26.0,129.78,129.76,16.63830122]
[1744665493638,26.0,129.78,129.75,32.21180122]
[1744665496054,26.0,129.78,129.75,32.21180122]
[1744665499238,26.0,129.78,129.75,26.2093938]
[1744665499544,26.0,129.78,129.75,18.5025938]
[1744665512652,29.71202737,129.8,129.76,10.6358938]
[1744665512960,29.71202737,129.8,129.75,26.2094938]
[1744665513962,7.7047,129.79,129.75,26.2094938]
[1744665514461,29.71202737,129.78,129.75,0.0001]
[1744665514862,26.638372,129.8,129.76,10.6358938]
[1744665515471,10.48,129.81,129.79,10.6358938]
[1744665516572,10.48,129.81,129.8,10.6358938]
[1744665516759,10.48,129.81,129.79,10.6358938]
[1744665517772,7.7661,129.82,129.79,10.6358938]
[1744665519972,0.063,129.82,129.81,10.6358938]
[1744665520454,0.063,129.82,129.79,10.6358938]
[1744665522170,0.063,129.82,129.79,18.3405938]
[1744665522772,0.063,129.82,129.81,10.6358938]
[1744665524085,0.063,129.82,129.8,18.3398938]
[1744665531071,0.063,129.82,129.81,10.6358938]
[1744665533173,0.063,129.82,129.8,10.6358938]
[1744665533953,0.063,129.82,129.8,18.3399938]
[1744665540777,0.063,129.82,129.81,10.6358938]
[1744665540984,0.063,129.84,129.81,61.09653057]
[1744665541162,0.063,129.84,129.83,10.6358938]
[1744665542884,0.063,129.86,129.84,7.91706157]
[1744665543082,0.063,129.88,129.85,36.6358938]
[1744665543278,0.063,129.88,129.87,10.6358938]
[1744665545778,0.063,129.88,129.87,18.47805537]
[1744665545986,0.5,129.9,129.89,8.0086]
[1744665546284,0.5,129.9,129.89,61.188069]
[1744665547381,0.5,129.9,129.89,68.886869]
[1744665548185,0.5,129.9,129.89,26.3432938]
[1744665549370,0.5,129.9,129.89,69.02903057]
[1744665550586,0.063,129.91,129.89,69.02903057]
[1744665550779,0.063,129.91,129.9,53.179469]
[1744665553093,0.063,129.91,129.9,60.877669]
[1744665554296,0.063,129.91,129.9,10.6358938]
[1744665555409,0.063,129.91,129.9,18.3340938]
[1744665561999,0.063,129.91,129.88,7.6988]
[1744665562200,0.063,129.91,129.86,7.7006]
[1744665562384,10.6988938,129.91,129.87,10.6358938]
[1744665562591,0.063,129.91,129.85,15.2359]
[1744665562797,0.063,129.91,129.87,10.6358938]
[1744665563981,0.063,129.91,129.87,18.3357938]
[1744665564401,0.063,129.91,129.88,10.6358938]
[1744665566689,0.063,129.91,129.87,10.6358938]
[1744665567210,10.6988938,129.91,129.86,10.6358938]
[1744665568119,7.6982,129.9,129.86,10.6358938]
[1744665569187,7.6982,129.9,129.86,18.3363938]
[1744665571113,7.6982,129.9,129.86,10.6358938]
[1744665577419,18.3340938,129.9,129.85,10.6358938]
[1744665580417,18.3340938,129.9,129.85,18.3369938]
[1744665581700,7.7608,129.91,129.88,10.6358938]
[1744665583223,7.7608,129.91,129.87,10.6358938]
[1744665583522,18.3966938,129.91,129.87,10.6358938]
[1744665586027,18.3966938,129.91,129.86,10.6358938]
[1744665588231,18.3966938,129.91,129.87,10.6358938]
[1744665590123,7.7608,129.91,129.87,10.6358938]
[1744665590707,0.063,129.91,129.9,10.6358938]
[1744665590928,0.063,129.91,129.89,10.6358938]
[1744665591114,0.063,129.91,129.88,10.6358938]
[1744665591313,7.7606,129.91,129.87,10.6358938]
[1744665592033,0.063,129.91,129.87,10.6358938]
[1744665593135,0.063,129.91,129.87,18.3356938]
[1744665594828,10.6988938,129.91,129.87,10.6358938]
[1744665598238,0.063,129.91,129.87,10.6358938]
[1744665600422,10.6988938,129.91,129.87,10.6358938]
[1744665600623,10.6988938,129.91,129.86,18.3362938]
[1744665602343,18.3970938,129.91,129.86,18.3362938]
[1744665604754,18.3970938,129.91,129.86,10.6358938]
[1744665604929,10.6358938,129.9,129.85,18.3368938]
[1744665605348,10.6358938,129.89,129.84,10.6358938]
[1744665606361,18.3352938,129.89,129.85,10.6358938]
[1744665606950,2.87621353,129.88,129.85,10.6358938]
[1744665607754,2.87621353,129.87,129.85,10.6358938]
[1744665608263,2.87621353,129.87,129.86,10.6358938]
[1744665608630,26.0,129.9,129.86,10.6358938]
[1744665608834,0.063,129.91,129.87,10.6358938]
[1744665609457,7.7609,129.91,129.87,10.6358938]
[1744665610061,7.7609,129.91,129.87,18.3357938]
[1744665610236,0.063,129.91,129.88,10.6358938]
[1744665612162,0.063,129.91,129.88,18.3351938]
[1744665614759,0.063,129.91,129.85,19.2519]
[1744665614969,0.063,129.91,129.87,10.6358938]
[1744665617776,29.77502737,129.91,129.86,10.6358938]
[1744665617993,11.06237851,129.89,129.84,10.6358938]
[1744665618361,18.3352938,129.88,129.84,10.6358938]
[1744665618671,18.3352938,129.88,129.83,7.7023]
[1744665618672,2.88080322,129.87,129.83,10.6358938]
[1744665618869,13.51669702,129.87,129.82,18.4016938]
[1744665619087,13.51669702,129.87,129.82,10.6988938]
[1744665619600,2.88080322,129.86,129.82,10.6988938]
[1744665619895,2.88080322,129.86,129.83,10.6358938]
[1744665620271,2.88080322,129.86,129.82,18.4016938]
[1744665620473,2.88080322,129.85,129.83,10.6358938]
[1744665620862,2.88080322,129.85,129.84,10.6358938]
[1744665621908,8.63745307,129.85,129.84,10.6358938]
[1744665625507,8.63745307,129.85,129.84,18.3375938]
[1744665626007,2.88080322,129.85,129.84,18.3375938]
[1744665626206,10.44,129.88,129.84,18.3375938]
[1744665626400,10.44,129.88,129.86,10.6358938]
[1744665627008,2.87569661,129.87,129.86,10.6358938]
[1744665627914,10.44,129.88,129.86,10.6358938]
[1744665628316,7.6989,129.89,129.86,10.6358938]
[1744665629006,80.8,129.9,129.86,18.3363938]
[1744665629208,5.75125812,129.88,129.86,7.7005]
[1744665629391,5.75125812,129.88,129.87,10.6358938]
[1744665630320,5.75125812,129.88,129.87,18.3358938]
[1744665631698,10.503,129.91,129.87,18.3358938]
[1744665631904,10.503,129.91,129.88,10.6358938]
[1744665632614,5.7504337,129.9,129.88,10.6358938]
[1744665633617,5.7504337,129.89,129.88,10.6358938]
[1744665634118,5.7504337,129.89,129.87,7.7]
[1744665634310,5.7504337,129.89,129.88,10.6358938]
[1744665637422,10.503,129.91,129.88,10.6358938]
[1744665637723,5.74800675,129.89,129.88,10.6358938]
[1744665637917,10.503,129.91,129.88,10.6358938]
[1744665638117,5.74821812,129.89,129.88,10.6358938]
[1744665640827,5.74821812,129.89,129.88,18.3352938]
[1744665646626,5.75131511,129.89,129.88,18.3352938]
[1744665661749,5.75131511,129.89,129.88,10.6358938]
[1744665661930,13.45011511,129.89,129.84,7.7017]
[1744665662134,13.45011511,129.89,129.85,10.6358938]
[1744665662331,5.75131511,129.88,129.86,10.6358938]
[1744665663350,7.6985,129.9,129.86,10.6358938]
[1744665664446,5.75242215,129.89,129.86,10.6358938]
[1744665665555,5.75242215,129.88,129.86,10.6358938]
[1744665666455,13.45192215,129.88,129.86,10.6358938]
[1744665666642,13.45192215,129.88,129.84,10.6358938]
[1744665666643,5.75242215,129.87,129.84,10.6358938]
[1744665667752,5.75242215,129.86,129.84,10.6358938]
[1744665668354,18.1395,129.88,129.84,10.6358938]
[1744665669455,13.45875547,129.87,129.84,10.6358938]
[1744665670858,5.75855547,129.86,129.84,10.6358938]
[1744665671756,7.7002,129.87,129.84,10.6358938]
[1744665673252,5.75782414,129.86,129.84,10.6358938]
[1744665674651,7.7002,129.87,129.84,10.6358938]
[1744665676263,5.75596155,129.86,129.84,10.6358938]
[1744665677462,7.7002,129.87,129.84,10.6358938]
[1744665677765,5.75546685,129.86,129.84,10.6358938]
[1744665678563,5.75546685,129.86,129.83,10.6358938]
[1744665678767,13.45606685,129.86,129.83,10.6358938]
[1744665679066,13.45606685,129.86,129.82,10.6988938]
[1744665679263,24.09196065,129.86,129.82,0.063]
[1744665680145,5.75546685,129.85,129.82,0.063]
[1744665680966,18.3364938,129.86,129.82,0.063]
[1744665681163,7.7006,129.86,129.82,0.063]
[1744665681363,7.7006,129.86,129.82,10.6988938]
[1744665681561,2.87644918,129.85,129.82,10.6988938]
[1744665682266,2.87644918,129.84,129.82,10.6988938]
[1744665682770,2.87644918,129.84,129.83,10.6358938]
[1744665683247,2.87644918,129.86,129.83,10.6358938]
[1744665683450,2.87644918,129.86,129.82,7.7656]
[1744665683451,2.87644918,129.86,129.84,10.6358938]
[1744665683969,18.1396,129.88,129.84,10.6358938]
[1744665684772,8.6273413,129.87,129.84,18.3374938]
[1744665685571,2.87578043,129.87,129.84,18.3374938]
[1744665685755,18.1396,129.88,129.84,18.3374938]
[1744665687453,8.62804987,129.87,129.84,18.3374938]
[1744665688272,18.1396,129.88,129.84,18.3374938]
[1744665689469,5.75267231,129.87,129.84,18.3374938]
[1744665690376,18.1396,129.88,129.84,18.3374938]
[1744665691377,2.87649115,129.87,129.84,18.3374938]
[1744665692172,2.87649115,129.87,129.85,10.6358938]
[1744665692378,10.44,129.88,129.85,10.6358938]
[1744665693775,8.63084488,129.87,129.85,10.6358938]
[1744665694581,5.75389659,129.87,129.85,18.3369938]
[1744665694779,10.44,129.88,129.85,18.3369938]
[1744665695783,7.6991,129.89,129.85,18.3369938]
[1744665696375,2.87731443,129.88,129.85,18.3369938]
[1744665696872,5.7550156,129.87,129.85,18.3369938]
[1744665697485,7.6991,129.89,129.85,18.3369938]
[1744665698481,5.75567805,129.88,129.85,18.3369938]
[1744665698863,2.87798338,129.87,129.85,18.3369938]
[1744665699585,7.6991,129.89,129.85,18.3369938]
[1744665700284,2.878222,129.88,129.85,18.3369938]
[1744665701094,2.878222,129.87,129.85,18.3369938]
[1744665701993,7.6991,129.89,129.85,18.3369938]
[1744665702287,5.7575104,129.88,129.85,18.3369938]
[1744665703186,5.7575104,129.87,129.85,18.3369938]
[1744665703683,5.7575104,129.87,129.85,10.6358938]
[1744665704090,7.6991,129.89,129.85,10.6358938]
[1744665704390,2.87948377,129.88,129.85,10.6358938]
[1744665704888,2.87948377,129.87,129.85,10.6358938]
[1744665705691,7.6991,129.89,129.85,10.6358938]
[1744665706393,10.57948805,129.88,129.85,10.6358938]
[1744665706800,5.76020163,129.87,129.84,10.6358938]
[1744665707484,2.88046609,129.86,129.84,10.6358938]
[1744665707900,10.58116609,129.86,129.83,18.2344938]
[1744665708195,2.88046609,129.85,129.82,10.6988938]
[1744665708500,2.88046609,129.85,129.83,10.6358938]
[1744665708803,5.76146154,129.84,129.83,10.6358938]
[1744665709295,8.64079255,129.84,129.83,10.6358938]
[1744665710691,5.76146154,129.84,129.82,0.063]
[1744665710992,5.76146154,129.84,129.83,10.6358938]
[1744665712704,5.76146154,129.84,129.82,0.063]
[1744665712873,5.76146154,129.84,129.83,10.6358938]
[1744665713076,7.7007,129.86,129.83,10.6358938]
[1744665713274,7.7007,129.86,129.84,10.6358938]
[1744665713684,2.87970762,129.85,129.84,10.6358938]
[1744665713882,8.63919411,129.85,129.83,10.6358938]
[1744665714401,5.75948649,129.84,129.83,10.6358938]
[1744665717511,7.7007,129.86,129.83,10.6358938]
[1744665718109,2.87818802,129.85,129.83,10.6358938]
[1744665718398,2.87818802,129.85,129.84,10.6358938]
[1744665719606,8.63374363,129.85,129.84,10.6358938]
[1744665723214,2.87818802,129.85,129.84,10.6358938]
[1744665723414,7.7001,129.87,129.84,10.6358938]
[1744665723911,2.87855344,129.86,129.84,10.6358938]
[1744665724115,8.63564562,129.86,129.84,10.6358938]
[1744665724514,5.75709218,129.86,129.84,10.6358938]
[1744665725211,7.7001,129.87,129.84,10.6358938]
[1744665726518,5.75791616,129.86,129.84,10.6358938]
[1744665726820,8.63693558,129.86,129.84,10.6358938]
[1744665727306,7.7001,129.87,129.84,10.6358938]
[1744665728896,5.75570666,129.86,129.84,10.6358938]
[1744665730088,7.7001,129.87,129.84,10.6358938]
[1744665730391,2.87652652,129.86,129.84,10.6358938]
[1744665731506,7.7001,129.87,129.84,10.6358938]
[1744665732505,5.75361723,129.86,129.84,10.6358938]
[1744665733633,7.7001,129.87,129.84,10.6358938]
[1744665734005,2.8772954,129.86,129.84,10.6358938]
[1744665735004,7.7001,129.87,129.84,10.6358938]
[1744665735620,5.75456126,129.86,129.84,10.6358938]
[1744665736817,5.75456126,129.85,129.84,10.6358938]
[1744665738221,8.63331805,129.85,129.84,10.6358938]
[1744665739198,8.63331805,129.85,129.82,7.7658]
[1744665739419,8.63331805,129.85,129.83,10.6358938]
[1744665739620,8.63331805,129.85,129.84,10.6358938]
[1744665741726,16.33451805,129.85,129.83,10.6358938]
[1744665741905,16.33451805,129.85,129.82,10.6988938]
[1744665742812,13.45576126,129.85,129.82,10.6988938]
[1744665743025,5.75456126,129.84,129.82,10.6988938]
[1744665744238,18.3378938,129.84,129.82,0.063]
[1744665744404,32.59254464,129.83,129.82,0.063]
[1744665745536,38.35155137,129.83,129.82,0.063]
[1744665746129,46.05385137,129.83,129.82,0.063]
[1744665748424,46.19601294,129.83,129.82,0.063]
[1744665752333,45.07613357,129.81,129.8,0.063]
[1744665752533,55.71202737,129.81,129.8,0.063]
[1744665753044,72.05505137,129.81,129.8,0.063]
[1744665761742,61.41915757,129.81,129.8,0.063]
[1744665761910,34.639524,129.81,129.8,0.063]
[1744665762110,2.88051727,129.81,129.8,10.6988938]
[1744665762921,91.22,129.82,129.8,10.6988938]
[1744665763235,10.42,129.82,129.8,10.6988938]
[1744665773556,10.42,129.82,129.8,0.063]
[1744665773850,18.1231,129.82,129.8,0.063]
[1744665779755,30.54496157,129.78,129.77,0.063]
[1744665779936,44.933972,129.73,129.72,0.063]
[1744665780124,119.08750579,129.73,129.72,0.063]
[1744665780446,121.75382538,129.73,129.72,0.063]
[1744665780647,124.62324376,129.73,129.72,0.063]
[1744665781954,132.33154376,129.73,129.72,0.063]
[1744665783368,132.33154376,129.73,129.72,0.0001]
[1744665783937,89.78796856,129.73,129.72,0.0001]
[1744665784446,132.33154376,129.73,129.72,0.0001]
[1744665784956,89.78796856,129.73,129.72,0.0001]
[1744665785952,79.36796856,129.73,129.72,0.0001]
[1744665786137,89.78796856,129.73,129.72,0.0001]
[1744665786339,26.78503357,129.72,129.71,0.0001]
[1744665786538,61.44307527,129.72,129.71,0.0001]
[1744665786735,64.31249365,129.72,129.71,0.0001]
[1744665786949,106.85606885,129.72,129.71,0.0001]
[1744665787866,64.31249365,129.72,129.71,0.0001]
[1744665789049,74.73249365,129.72,129.71,0.0001]
[1744665791180,0.14216157,129.71,129.7,0.0001]
[1744665791367,10.77805537,129.71,129.7,0.0001]
[1744665792094,18.48755537,129.71,129.7,0.0001]
[1744665795284,22.38951031,129.71,129.7,0.0001]
[1744665798993,11.75361651,129.71,129.7,0.0001]
[1744665799177,32.80951031,129.71,129.7,0.0001]
[1744665805599,28.90755537,129.71,129.7,0.0001]
[1744665809398,32.78753941,129.71,129.7,0.0001]
[1744665812204,22.36753941,129.71,129.7,0.0001]
[1744665812399,32.78753941,129.71,129.7,0.0001]
[1744665813307,22.36753941,129.71,129.7,0.0001]
[1744665813699,41.44367298,129.71,129.69,0.0001]
[1744665813900,40.27418894,129.7,129.69,0.0001]
[1744665814212,121.07418894,129.7,129.69,0.0001]
[1744665814601,123.92693634,129.7,129.69,0.0001]
[1744665816506,131.63703634,129.7,129.69,0.0001]
[1744665817818,154.72703634,129.7,129.69,0.0001]
[1744665818008,173.08251757,129.7,129.69,0.0001]
[1744665818511,174.08251757,129.7,129.69,0.0001]
[1744665819516,93.28251757,129.7,129.69,0.0001]
[1744665819718,44.933972,129.66,129.65,0.0001]
[1744665820014,55.85418894,129.66,129.65,0.0001]
[1744665820817,58.70693634,129.66,129.65,0.0001]
[1744665822219,66.41933634,129.66,129.65,0.0001]
[1744665823223,55.78344254,129.66,129.65,0.0001]
[1744665823518,66.41933634,129.66,129.65,0.0001]
[1744665823816,63.56658894,129.66,129.65,0.0001]
[1744665824011,66.44031822,129.66,129.65,0.0001]
[1744665839301,108.98389342,129.66,129.65,0.0001]
[1744665840199,66.44031822,129.66,129.65,0.0001]
[1744665842125,76.86031822,129.66,129.65,0.0001]
[1744665844119,119.40389342,129.66,129.64,0.0101]
[1744665844427,121.24091822,129.65,129.64,0.0101]
[1744665845413,63.53091822,129.65,129.64,0.0101]
[1744665848824,63.53091822,129.65,129.59,8.0455]
[1744665848825,19.21829514,129.61,129.59,8.0455]
[1744665849034,10.56216157,129.6,129.59,8.0455]
[1744665849226,13.43589085,129.6,129.59,8.0455]
[1744665851337,21.15189085,129.6,129.59,8.0455]
[1744665855236,18.933972,129.55,129.52,0.03]
[1744665855439,26.0,129.53,129.52,0.03]
[1744665855824,28.87372928,129.53,129.52,0.03]
[1744665856735,19.07613357,129.55,129.52,0.03]
[1744665856927,19.07613357,129.55,129.52,10.6658938]
[1744665857119,8.14578471,129.55,129.52,10.6658938]
[1744665857319,7.7193,129.55,129.52,10.6658938]
[1744665857739,7.7193,129.55,129.52,0.03]
[1744665859245,7.7193,129.55,129.52,10.6658938]
[1744665860947,7.7193,129.55,129.52,0.03]
[1744665861153,7.7193,129.55,129.52,10.6658938]
[1744665861449,0.42648471,129.54,129.52,0.03]
[1744665864150,8.14658471,129.54,129.52,0.03]
[1744665865048,19.07613357,129.53,129.52,0.03]
[1744665866346,26.79633357,129.53,129.52,0.03]
[1744665866851,7.7198,129.54,129.52,0.03]
[1744665867031,8.00412314,129.54,129.52,0.03]
[1744665870657,29.21181043,129.55,129.52,10.6658938]
[1744665870861,29.21181043,129.55,129.53,10.6358938]
[1744665871262,0.14216157,129.57,129.52,0.03]
[1744665871263,7.7175,129.58,129.54,10.6358938]
[1744665871558,7.7175,129.58,129.55,10.6358938]
[1744665873159,110.01181043,129.59,129.57,10.6358938]
[1744665873757,91.22,129.59,129.57,10.6358938]